fUSD/lending_fUSD_20240930
["ID","MTS","AMOUNT","RATE_DAILY","PERIOD"]
[339558433,1727693441332,2000.0,0.000123,30]
[339558490,1727693443036,-860.7265551,0.00011,2]
[339558498,1727693443103,-16199.55781051,0.00011,2]
[339558500,1727693443115,-81434.91859163,0.00011,2]
[339558502,1727693443125,-250.0,0.0001121,2]
[339558504,1727693443135,-150.0,0.00011244,2]
[339558505,1727693443146,-250.0,0.00011279,2]
[339558506,1727693443155,-261.81,0.00011329,2]
[339558507,1727693443166,-6667.4,0.00011331,2]
[339558508,1727693443176,-502.17,0.00011333,2]
[339558509,1727693443186,-250.0,0.0001136,2]
[339558510,1727693443195,-1000.0,0.00011383,2]
[339558511,1727693443205,-499.99,0.00011383,2]
[339558512,1727693443214,-151.75,0.00011412,2]
[339558513,1727693443224,-2751.0,0.00011507,2]
[339558514,1727693443234,-390.69,0.00011609,2]
[339558515,1727693443244,-319.84,0.0001163,2]
[339558516,1727693443254,-194.212101,0.00012027,2]
[339558517,1727693443263,-174.853999,0.00012027,2]
[339558518,1727693443272,-194.257825,0.00012027,2]
[339558519,1727693443283,-220.04549,0.00012027,2]
[339558520,1727693443292,-889.636204,0.00012027,2]
[339558521,1727693443301,-342.707656,0.00012027,2]
[339558523,1727693443311,-185.786511,0.00012027,2]
[339558525,1727693443320,-177.564518,0.00012027,2]
[339558526,1727693443330,-889.636204,0.00012178,2]
[339558528,1727693443339,-342.707656,0.00012178,2]
[339558530,1727693443348,-1449.0516,0.000123,2]
[339558532,1727693443358,-5528.6543,0.000123,2]
[339558534,1727693443367,-1250.0,0.000123,2]
[339558536,1727693443377,-422.34458308,0.00012323,2]
[339558538,1727693443387,-889.636204,0.00012328,2]
[339558540,1727693443397,-342.707656,0.00012328,2]
[339558542,1727693443407,-23285.4249,0.00012398,2]
[339558544,1727693443417,-14573.8699,0.00012398,2]
[339558546,1727693443427,-5395.4636,0.00012398,2]
[339558548,1727693443436,-1000.0,0.00012398,2]
[339558550,1727693443446,-41854.0586741,0.00012399,2]
[339558552,1727693443457,-171.30096857,0.000124,2]
[339558554,1727693443466,-166.198302,0.000124,2]
[339558556,1727693443477,-1000.58,0.000124,2]
[339558558,1727693443486,-176.37649619,0.000124,2]
[339558560,1727693443498,-176.37649619,0.000124,2]
[339558562,1727693443507,-176.37649619,0.000124,2]
[339558563,1727693443516,-176.87,0.000124,2]
[339558565,1727693443525,-173.76149476,0.000124,2]
[339558567,1727693443535,-173.76149476,0.000124,2]
[339558569,1727693443545,-173.76149476,0.000124,2]
[339558571,1727693443555,-174.26,0.000124,2]
[339558573,1727693443564,-179.31125065,0.000124,2]
[339558575,1727693443574,-179.31125065,0.000124,2]
[339558577,1727693443584,-179.81,0.000124,2]
[339558579,1727693443594,-199.37,0.00012403,2]
[339558581,1727693443606,-1000.0,0.00012438,2]
[339558583,1727693443616,-1000.0,0.00012438,2]
[339558585,1727693443626,-1000.0,0.00012438,2]
[339558587,1727693443637,-713.9338,0.00012438,2]
[339558589,1727693443648,-167.99,0.00012445,2]
[339558591,1727693443658,-167.01,0.00012445,2]
[339558593,1727693443668,-180.0,0.00012464,2]
[339558595,1727693443678,-500.0,0.00012467,2]
[339558597,1727693443688,-500.0,0.00012475,2]
[339558599,1727693443699,-1999.70481535,0.00012478,6]
[339558600,1727693443709,-889.636204,0.00012478,2]
[339558602,1727693443718,-342.707656,0.00012478,2]
[339558604,1727693443728,-500.0,0.00012484,2]
[339558607,1727693443738,-1757.9780145,0.0001249,2]
[339558609,1727693443751,-500.0,0.00012493,2]
[339558611,1727693443761,-49559.82820277,0.00012498,4]
[339558613,1727693443770,-151.16,0.00012499,2]
[339558615,1727693443780,-152.15,0.00012499,2]
[339558617,1727693443790,-575.0,0.000125,2]
[339558618,1727693443799,-1665.04947227,0.000125,2]
[339558620,1727693443809,-7384.09738165,0.000125,2]
[339558623,1727693443821,-149622.22722345,0.000125,2]
[339558625,1727693443830,-400715.55034037,0.000125,2]
[339558826,1727693445826,-1273.734726,0.000125,2]
[339558832,1727693445877,-2580.39101822,0.000125,2]
[339558834,1727693445924,-5999.99999999,0.000125,2]
[339558835,1727693445936,-7127.9963201,0.000125,2]
[339558840,1727693445973,-433.61076576,0.000125,2]
[339558842,1727693445985,-1098.95390997,0.000125,2]
[339558858,1727693446127,-406.01917127,0.000125,2]
[339558860,1727693446140,-8999.98669471,0.000125,2]
[339560018,1727693522031,500.0,0.00021999,120]
[339560019,1727693522327,500.0,0.00021999,120]
[339560020,1727693522595,500.0,0.00021999,120]
[339560021,1727693522859,500.0,0.00021999,120]
[339560022,1727693523141,500.0,0.00021999,120]
[339560023,1727693523400,623.02136303,0.00021999,120]
[339560024,1727693715828,500.0,0.00021999,120]
[339560025,1727693716113,500.0,0.00021999,120]
[339560026,1727693716399,500.0,0.00021999,120]
[339560027,1727693716679,500.0,0.00021999,120]
[339560028,1727693716989,500.0,0.00021999,120]
[339560029,1727693717612,500.0,0.00021999,120]
[339560030,1727693717905,500.0,0.00021999,120]
[339560031,1727693805929,276.5,0.00013918,30]
[339560032,1727693871709,374.78,9.745e-05,2]
[339560033,1727693883454,312.9804716,0.00021999,120]
[339560034,1727694012811,500.0,0.00021999,120]
[339560035,1727694013094,500.0,0.00021999,120]
[339560036,1727694013356,500.0,0.00021999,120]
[339560037,1727694013640,500.0,0.00021999,120]
[339560038,1727694013939,500.0,0.00021999,120]
[339560039,1727694014545,500.0,0.00021999,120]
[339560040,1727694014619,500.0,0.00021999,120]
[339560041,1727694014817,500.0,0.00021999,120]
[339560042,1727694015082,500.0,0.00021999,120]
[339560043,1727694015381,500.0,0.00021999,120]
[339560044,1727694035804,500.0,0.00021999,120]
[339560045,1727694036057,500.0,0.00021999,120]
[339560046,1727694036448,500.0,0.00021999,120]
[339560047,1727694036772,500.0,0.00021999,120]
[339560048,1727694037045,500.0,0.00021999,120]
[339560049,1727694037372,500.0,0.00021999,120]
[339560050,1727694037757,500.0,0.00021999,120]
[339560051,1727694038264,500.0,0.00021999,120]
[339560052,1727694039510,2000.0,8.2e-05,30]
[339560053,1727694040563,500.0,0.00021999,120]
[339560054,1727694040847,500.0,0.00021999,120]
[339560055,1727694040874,1440.0,0.000123,30]
[339560056,1727694041143,500.0,0.00021999,120]
[339560057,1727694041439,500.0,0.00021999,120]
[339560058,1727694041730,500.0,0.00021999,120]
[339560059,1727694042094,533.2231049,0.00021999,120]
[339560060,1727694046444,-161.05,0.00010959,2]
[339560061,1727694202743,174.48,0.00010959,2]
[339560064,1727694460176,368.33,9.442e-05,2]
[339560078,1727694632179,-1050.0,0.00011,2]
[339560079,1727694632189,-255.87,0.00011373,2]
[339560080,1727694632198,-1000.0,0.00011396,2]
[339560081,1727694632208,-250.0,0.00011396,2]
[339560082,1727694632218,-385.19,0.00011428,2]
[339560083,1727694632228,-2723.97485961,0.00011509,2]
[339560084,1727694632240,-27.02514039,0.00011509,2]
[339560085,1727694632249,-368.33,0.00011706,2]
[339560086,1727694632259,-200.73,0.00011729,2]
[339560087,1727694632269,-300.0,0.00011843,2]
[339560088,1727694632279,-26.4242152,0.00011844,2]
[339560089,1727694632290,-359.69787902,0.00011844,2]
[339560090,1727694632306,-619.91234272,0.00011844,2]
[339560091,1727694632318,-294.15884645,0.00011844,2]
[339560103,1727694638142,-921.2757229,0.00011844,2]
[339560105,1727694638182,-251.97235366,0.00011844,2]
[339560106,1727694638194,-260.92,0.00011844,2]
[339560107,1727694638314,-1900.0,0.00011844,2]
[339560108,1727694638454,-1896.55694326,0.00011844,2]
[339560109,1727694638464,-3000.0,0.00012,2]
[339560110,1727694638474,-999.99,0.00012,2]
[339560111,1727694638484,-585.29,0.00012,2]
[339560112,1727694638493,-485.322439,0.00012027,2]
[339560113,1727694638503,-174.074221,0.00012027,2]
[339560114,1727694638513,-161.507085,0.00012027,2]
[339560115,1727694638525,-1737.357713,0.00012027,2]
[339560116,1727694638535,-422.34458308,0.00012069,2]
[339560117,1727694638545,-485.322439,0.00012178,2]
[339560118,1727694638555,-1737.357713,0.00012178,2]
[339560119,1727694638565,-181.148,0.00012298,2]
[339560120,1727694638574,-453.727,0.00012298,2]
[339560121,1727694638584,-150.0,0.00012298,2]
[339560123,1727694638593,-193.6701,0.00012298,2]
[339560125,1727694638603,-894.0289,0.00012298,2]
[339560127,1727694638613,-466.7917,0.00012298,2]
[339560129,1727694638623,-500.0,0.00012299,2]
[339560131,1727694638632,-37941.9464,0.00012299,2]
[339560133,1727694638641,-42582.0799,0.000123,2]
[339560135,1727694638651,-312.592,0.000123,2]
[339560138,1727694638660,-1250.0,0.000123,2]
[339560141,1727694638670,-629.30035518,0.000123,2]
[339560143,1727694638680,-629.30035518,0.00012311,2]
[339560145,1727694638690,-629.30035518,0.00012322,2]
[339560147,1727694638699,-485.322439,0.00012328,2]
[339560149,1727694638709,-1737.357713,0.00012328,2]
[339560152,1727694638719,-629.30035518,0.00012333,2]
[339560154,1727694638728,-629.30035518,0.00012344,2]
[339560156,1727694638738,-150.0,0.00012345,2]
[339560158,1727694638748,-629.30035518,0.00012356,2]
[339560160,1727694638758,-629.30035518,0.00012367,2]
[339560162,1727694638767,-629.30035518,0.00012378,2]
[339560164,1727694638777,-629.30035518,0.00012389,2]
[339560166,1727694638786,-154.9008,0.000124,2]
[339560168,1727694638796,-2061.1445,0.000124,2]
[339560170,1727694638806,-827.350988,0.000124,2]
[339560172,1727694638816,-220.60246218,0.000124,2]
[339560174,1727694638826,-78871.8461,0.000124,2]
[339560176,1727694638839,-171.91852514,0.000124,2]
[339560178,1727694638848,-172.17090236,0.000124,2]
[339560180,1727694638858,-998.78,0.000124,2]
[339560182,1727694638868,-629.30035518,0.000124,2]
[339560184,1727694638880,-932.31,0.000124,2]
[339560186,1727694638889,-153.73177365,0.000124,2]
[339560188,1727694638899,-150.89452176,0.000124,2]
[339560190,1727694638909,-150.89452176,0.000124,2]
[339560192,1727694638918,-150.89452176,0.000124,2]
[339560194,1727694638929,-151.39,0.000124,2]
[339560196,1727694638938,-199.17636073,0.000124,2]
[339560198,1727694638947,-199.17636073,0.000124,2]
[339560200,1727694638958,-199.67,0.000124,2]
[339560202,1727694638967,-215.12362584,0.000124,2]
[339560204,1727694638977,-215.62,0.000124,2]
[339560206,1727694638987,-4736.81002441,0.000124,2]
[339560208,1727694638996,-207.18361201,0.000124,2]
[339560210,1727694639006,-166.99,0.00012445,2]
[339560212,1727694639015,-165.93,0.00012445,2]
[339560214,1727694639025,-500.0,0.00012473,2]
[339560216,1727694639034,-501.289333,0.00012473,2]
[339560218,1727694639043,-211.99856331,0.00012473,2]
[339560220,1727694639052,-500.0,0.00012473,2]
[339560222,1727694639061,-485.322439,0.00012478,2]
[339560224,1727694639074,-1737.357713,0.00012478,2]
[339560226,1727694639083,-152.81,0.0001249,2]
[339560228,1727694639092,-500.0,0.00012499,2]
[339560230,1727694639102,-500.0,0.00012499,2]
[339560232,1727694639112,-347.78045489,0.00012499,2]
[339560234,1727694639122,-520.0,0.000125,2]
[339560236,1727694639131,-1937.42372109,0.000125,2]
[339560238,1727694639141,-120515.46705381,0.000125,2]
[339560240,1727694639151,-1848443.21896096,0.000125,2]
[339560258,1727694639320,-7457.71596049,0.000125,2]
[339560261,1727694639331,-6161.00831661,0.000125,2]
[339560344,1727694640098,-1339.99999945,0.000125,2]
[339560360,1727694640244,-673.33331638,0.000125,2]
[339560376,1727694640389,-738.06686164,0.000125,2]
[339560647,1727694643154,-2751.0,0.00011858,2]
[339560649,1727694643164,-4222.44946738,0.000125,2]
[339560663,1727694643296,-141157.1474127,0.000125,2]
[339560670,1727694643351,-1091.63676961,0.000125,2]
[339560675,1727694643390,-15170.8992629,0.000125,2]
[339560943,1727694646025,-1076.48768631,0.000125,2]
[339560950,1727694646058,-581.80970077,0.000125,2]
[339560954,1727694646070,-4008.24561734,0.000125,2]
[339560978,1727694646185,-475.02904167,0.000125,2]
[339561017,1727694646419,-14453.70993977,0.000125,2]
[339561019,1727694646431,-25697.06859958,0.000125,2]
[339561724,1727694779086,154.33,0.00010959,2]
[339561725,1727694809655,666.666666,0.00022,120]
[339561726,1727694810675,666.666666,0.00022,120]
[339561727,1727694811310,666.666666,0.00022,120]
[339561728,1727694811802,666.666666,0.00022,120]
[339561729,1727694812374,666.666666,0.00022,120]
[339561730,1727694812889,666.666666,0.00022,120]
[339561731,1727694813463,666.666666,0.00022,120]
[339561732,1727694814036,666.666666,0.00022,120]
[339561733,1727694814578,666.666666,0.00022,120]
[339561734,1727694815146,666.666666,0.00022,120]
[339561735,1727694815850,666.666666,0.00022,120]
[339561736,1727694826484,500.0,0.00022,120]
[339561737,1727694827008,500.0,0.00022,120]
[339561738,1727694827522,500.0,0.00022,120]
[339561739,1727694828210,500.0,0.00022,120]
[339561740,1727694828615,500.0,0.00022,120]
[339561741,1727694829163,500.0,0.00022,120]
[339561742,1727694829700,500.0,0.00022,120]
[339561743,1727694830276,500.0,0.00022,120]
[339561744,1727694830817,500.0,0.00022,120]
[339561745,1727694831373,500.0,0.00022,120]
[339561747,1727694842846,599.33471617,0.00022,120]
[339561748,1727695014174,426.8589988,0.00021,60]
[339561749,1727695028750,2000.0,0.00015,30]
[339561750,1727695054289,355.89,9.663e-05,2]
[339561751,1727695538804,1440.51659237,8.2e-05,30]
[339561753,1727695728466,350.09,9.097e-05,2]
[339561767,1727695832393,-1261.93928684,0.0001099,2]
[339561768,1727695832405,-150.0,0.00010999,2]
[339561769,1727695832416,-1595.46071316,0.00011,2]
[339561770,1727695832429,-13970.1757028,0.00011,2]
[339561771,1727695832443,-365.06759219,0.00011,2]
[339561772,1727695832455,-494.60842309,0.00011,2]
[339561773,1727695832469,-739.32803792,0.00011,2]
[339561774,1727695832481,-1440.26954301,0.00011,2]
[339561776,1727695838318,-465.92659138,0.00011,2]
[339561777,1727695838373,-1706.22595138,0.00011,2]
[339561778,1727695838387,-506.183996,0.00011,2]
[339561779,1727695838434,-300.0,0.00011,2]
[339561780,1727695838446,-831.99980936,0.00011,2]
[339561781,1727695838493,-3500.37831777,0.00011,2]
[339561782,1727695838551,-647.96704619,0.00011,2]
[339561783,1727695838564,-2470.70831661,0.00011,2]
[339561941,1727695840310,-388.60456922,0.00011,2]
[339561944,1727695840322,-900.4367016,0.00011,2]
[339561946,1727695840335,-2441.02135973,0.00011,2]
[339561951,1727695840370,-324.82018686,0.00011,2]
[339561953,1727695840382,-629.10474502,0.00011,2]
[339561955,1727695840395,-957.0,0.00011,2]
[339561958,1727695840407,-1207.804,0.00011,2]
[339562236,1727695843275,-515.16797209,0.00011,2]
[339562244,1727695843340,-28546.6046542,0.00011,2]
[339562251,1727695843402,-264.06999999,0.00011,2]
[339562254,1727695843415,-679.9439967,0.00011,2]
[339562260,1727695843467,-5600.45753548,0.00011,2]
[339562262,1727695843479,-5722.24100985,0.00011,2]
[339562265,1727695843492,-711.32069724,0.00011,2]
[339562270,1727695843528,-624.25537855,0.00011,2]
[339562277,1727695843591,-301.6,0.00011,2]
[339562279,1727695843604,-599201.30343936,0.00011,2]
[339562281,1727695843614,-1050.0,0.00011,2]
[339562283,1727695843625,-160.58,0.00011018,2]
[339562286,1727695843635,-250.0,0.00011227,2]
[339562288,1727695843646,-8040.04,0.00011227,2]
[339562290,1727695843656,-150.0,0.00011244,2]
[339562292,1727695843667,-150.0,0.00011244,2]
[339562294,1727695843678,-150.0,0.00011244,2]
[339562296,1727695843688,-150.0,0.00011244,2]
[339562298,1727695843699,-150.0,0.00011306,2]
[339562300,1727695843710,-1000.0,0.00011338,2]
[339562302,1727695843721,-350.09,0.00011361,2]
[339562304,1727695843731,-150.0,0.00011369,2]
[339562306,1727695843742,-192.59,0.0001137,2]
[339562309,1727695843752,-309.31,0.0001137,2]
[339562311,1727695843762,-150.0,0.00011383,2]
[339562313,1727695843773,-2510.0,0.00011396,2]
[339562315,1727695843783,-150.0,0.00011431,2]
[339562317,1727695843795,-822.04,0.00011431,2]
[339562319,1727695843805,-5000.0,0.00011444,2]
[339562321,1727695843815,-150.0,0.00011494,2]
[339562323,1727695843826,-2751.0,0.00011507,2]
[339562325,1727695843836,-150.0,0.00011521,2]
[339562327,1727695843846,-150.0,0.00011556,2]
[339562329,1727695843857,-150.0,0.00011619,2]
[339562331,1727695843867,-150.0,0.0001166,2]
[339562334,1727695843878,-150.0,0.0001166,2]
[339562336,1727695843889,-213.69,0.00011674,2]
[339562338,1727695843899,-5000.0,0.00011678,2]
[339562340,1727695843910,-150.0,0.00011681,2]
[339562342,1727695843920,-270.72,0.00011697,2]
[339562344,1727695843931,-299.99,0.00011697,2]
[339562346,1727695843943,-499.99,0.00011697,2]
[339562348,1727695843953,-150.0,0.00011744,2]
[339562350,1727695843964,-150.0,0.00011799,2]
[339562353,1727695843975,-150.0,0.00011806,2]
[339562355,1727695843987,-1256.22595138,0.00011844,2]
[339562357,1727695843998,-150.0,0.00011868,2]
[339562359,1727695844009,-150.0,0.00011931,2]
[339562361,1727695844019,-150.0,0.00011938,2]
[339562363,1727695844029,-150.0,0.00011993,2]
[339562365,1727695844040,-150.999997,0.00012,2]
[339562367,1727695844051,-259.314327,0.00012027,2]
[339562370,1727695844061,-150.0,0.00012056,2]
[339562372,1727695844074,-150.0,0.00012077,2]
[339562374,1727695844092,-150.0,0.00012077,2]
[339562376,1727695844104,-180.0,0.0001211,2]
[339562378,1727695844114,-150.0,0.00012118,2]
[339562380,1727695844125,-15000.0,0.00012124,2]
[339562382,1727695844135,-422.34458308,0.00012133,2]
[339562384,1727695844145,-259.314327,0.00012178,2]
[339562386,1727695844155,-150.0,0.00012181,2]
[339562388,1727695844165,-150.0,0.00012216,2]
[339562390,1727695844177,-150.0,0.00012243,2]
[339562392,1727695844187,-20000.0,0.00012294,3]
[339562394,1727695844197,-362.982,0.00012299,2]
[339562396,1727695844212,-181.148,0.00012299,2]
[339562399,1727695844223,-7318.1238,0.000123,2]
[339562401,1727695844234,-12184.858,0.000123,2]
[339562403,1727695844245,-1250.0,0.000123,2]
[339562405,1727695844255,-150.0,0.00012306,2]
[339562407,1727695844266,-259.314327,0.00012328,2]
[339562409,1727695844278,-150.0,0.00012354,2]
[339562411,1727695844288,-150.0,0.00012368,2]
[339562414,1727695844300,-10383.02581231,0.0001238,2]
[339562416,1727695844310,-160.58,0.00012396,2]
[339562418,1727695844320,-905.3344,0.000124,2]
[339562420,1727695844332,-160.92112466,0.000124,2]
[339562422,1727695844342,-160.92112466,0.000124,2]
[339562424,1727695844352,-161.42,0.000124,2]
[339562426,1727695844362,-172.04926325,0.000124,2]
[339562428,1727695844372,-172.54,0.000124,2]
[339562430,1727695844382,-150.0,0.00012431,2]
[339562432,1727695844392,-25000.0,0.00012469,4]
[339562434,1727695844402,-259.314327,0.00012478,2]
[339562436,1727695844412,-150.0,0.00012493,2]
[339562438,1727695844422,-150.0,0.00012493,2]
[339562440,1727695844432,-150.0,0.00012493,2]
[339562442,1727695844443,-2924.4855571,0.00012496,2]
[339562444,1727695844453,-5481.0809119,0.00012496,2]
[339562447,1727695844463,-154.049,0.00012499,2]
[339562449,1727695844473,-1549.93897687,0.000125,2]
[339562451,1727695844483,-71619.71774593,0.000125,2]
[339562480,1727695844754,-319466.84222741,0.000125,2]
[339562624,1727695846213,-365.6844958,0.000125,2]
[339562625,1727695846271,-1064.02473447,0.000125,2]
[339562626,1727695846283,-1849.16501553,0.000125,2]
[339562628,1727695846295,-9169.95534482,0.000125,2]
[339562631,1727695846306,-2233.125348,0.000125,2]
[339562634,1727695846331,-3149.81460452,0.000125,2]
[339564923,1727695882929,500.0,0.00021999,120]
[339564924,1727695883194,262.43421906,0.00021999,120]
[339564925,1727695961517,500.0,0.00021999,120]
[339564926,1727695961799,500.0,0.00021999,120]
[339564927,1727695962029,500.0,0.00021999,120]
[339564928,1727695962289,500.0,0.00021999,120]
[339564929,1727695962556,500.0,0.00021999,120]
[339564930,1727695962922,500.0,0.00021999,120]
[339564931,1727695963067,500.0,0.00021999,120]
[339564932,1727695963313,500.0,0.00021999,120]
[339564933,1727695963570,500.0,0.00021999,120]
[339564934,1727695963881,500.0,0.00021999,120]
[339564935,1727695964154,500.0,0.00021999,120]
[339564936,1727695964410,500.0,0.00021999,120]
[339564937,1727695964688,500.0,0.00021999,120]
[339564938,1727695964945,352.19759916,0.00021999,120]
[339564939,1727695972229,501.24362106,0.00021999,120]
[339564940,1727696340170,258.85,0.00013918,30]
[339564941,1727696342023,151.5,0.00010959,2]
[339564942,1727696378552,338.93,9.705e-05,2]
[339564943,1727696395595,200.0,0.00013848,30]
[339564944,1727696439019,258.0,0.00022,120]
[339564945,1727696450898,266.0,0.00021,60]
[339564947,1727696467851,233.0,0.00015,30]
[339564948,1727696916000,333.79,9.11e-05,2]
[339564949,1727696927730,174.48,0.00010959,2]
[339564957,1727697031498,-216.57,0.00011032,2]
[339564958,1727697031508,-150.0,0.00011244,2]
[339564959,1727697031517,-150.0,0.00011244,2]
[339564960,1727697031526,-150.0,0.00011244,2]
[339564961,1727697031536,-150.0,0.00011292,2]
[339564962,1727697031545,-150.0,0.0001131,2]
[339564963,1727697031555,-150.0,0.0001134,2]
[339564964,1727697031566,-333.79,0.00011374,2]
[339564965,1727697031577,-150.0,0.00011375,2]
[339564966,1727697031587,-150.0,0.00011388,2]
[339564967,1727697031597,-150.0,0.00011422,2]
[339564968,1727697031607,-150.0,0.00011436,2]
[339564969,1727697031616,-367.28878082,0.00011436,2]
[339564970,1727697031628,-1703.14121918,0.00011436,2]
[339564971,1727697031638,-150.0,0.00011441,2]
[339564972,1727697031648,-386.82,0.00011441,2]
[339564973,1727697031658,-150.0,0.00011484,2]
[339564974,1727697031670,-8153.39878082,0.00011484,2]
[339564977,1727697037762,-477.50902857,0.00011484,2]
[339565142,1727697039359,-1369.08219061,0.00011484,2]
[339565143,1727697039368,-876.14,0.00011484,2]
[339565144,1727697039377,-192.59,0.00011491,2]
[339565145,1727697039386,-150.0,0.00011507,2]
[339565146,1727697039396,-2751.0,0.00011507,2]
[339565147,1727697039406,-150.0,0.00011532,2]
[339565148,1727697039415,-150.0,0.00011573,2]
[339565149,1727697039424,-150.0,0.0001158,2]
[339565150,1727697039433,-222.0,0.00011595,2]
[339565151,1727697039441,-150.0,0.00011601,2]
[339565152,1727697039450,-150.0,0.00011628,2]
[339565153,1727697039459,-150.0,0.00011638,2]
[339565154,1727697039468,-250.0,0.00011643,2]
[339565155,1727697039477,-150.0,0.00011676,2]
[339565156,1727697039487,-290.25,0.00011701,2]
[339565157,1727697039496,-150.0,0.00011704,2]
[339565158,1727697039505,-222.0,0.00011713,2]
[339565159,1727697039514,-169.38,0.00011714,2]
[339565160,1727697039523,-150.0,0.00011724,2]
[339565161,1727697039533,-150.0,0.0001177,2]
[339565163,1727697039542,-150.0,0.00011772,2]
[339565165,1727697039551,-150.0,0.00011779,2]
[339565167,1727697039562,-1000.0,0.00011796,2]
[339565169,1727697039571,-150.0,0.0001182,2]
[339565171,1727697039580,-150.0,0.00011836,2]
[339565173,1727697039589,-150.0,0.00011868,2]
[339565175,1727697039598,-1398.24755532,0.00011874,2]
[339565177,1727697039607,-150.0,0.00011901,2]
[339565178,1727697039616,-150.0,0.00011917,2]
[339565180,1727697039625,-150.0,0.00011958,2]
[339565182,1727697039634,-154.05,0.00011961,2]
[339565184,1727697039644,-150.0,0.00011965,2]
[339565186,1727697039653,-150.0,0.00011967,2]
[339565188,1727697039665,-150.0,0.00012013,2]
[339565190,1727697039674,-151.663264,0.00012027,2]
[339565192,1727697039683,-161.507085,0.00012027,2]
[339565194,1727697039692,-621.270746,0.00012027,2]
[339565196,1727697039702,-165.606019,0.00012027,2]
[339565198,1727697039712,-150.0,0.00012033,2]
[339565200,1727697039721,-150.0,0.00012061,2]
[339565202,1727697039731,-150.0,0.00012099,2]
[339565204,1727697039741,-150.0,0.00012109,2]
[339565206,1727697039751,-180.0,0.00012121,2]
[339565208,1727697039760,-150.0,0.00012136,2]
[339565210,1727697039769,-150.0,0.00012157,2]
[339565212,1727697039778,-150.0,0.00012164,2]
[339565214,1727697039788,-255.0,0.00012177,2]
[339565216,1727697039797,-621.270746,0.00012178,2]
[339565218,1727697039808,-165.606019,0.00012178,2]
[339565220,1727697039816,-255.0,0.00012187,2]
[339565222,1727697039826,-150.0,0.00012205,2]
[339565224,1727697039835,-258.0,0.00012216,2]
[339565226,1727697039844,-150.0,0.0001223,2]
[339565228,1727697039853,-422.34458308,0.00012247,2]
[339565230,1727697039862,-150.0,0.00012253,2]
[339565232,1727697039871,-150.0,0.00012296,2]
[339565234,1727697039881,-1250.0,0.000123,2]
[339565236,1727697039891,-150.0,0.00012301,2]
[339565238,1727697039900,-150.0,0.00012315,2]
[339565240,1727697039909,-500.0,0.00012318,2]
[339565242,1727697039918,-238.0,0.0001232,2]
[339565244,1727697039927,-151.663264,0.00012328,2]
[339565246,1727697039937,-621.270746,0.00012328,2]
[339565248,1727697039946,-165.606019,0.00012328,2]
[339565250,1727697039956,-150.0,0.00012349,2]
[339565252,1727697039965,-150.0,0.00012362,2]
[339565254,1727697039974,-150.0,0.00012397,2]
[339565256,1727697039983,-493.1894,0.000124,2]
[339565258,1727697039993,-848.1,0.000124,2]
[339565260,1727697040003,-300.0,0.000124,2]